Workbook

Sheet Information (hidden)
A1: Glide WD - 2023 M&I Water Rates Sch O-10.Z25.xlsm
A2: 01/09/2023
A8: 1/26/2022 | B8: slf | C8: removed construction rates since contractor converted to WIIN Act
A10: 10/26/2022 | B10: JH | C10: Updated file names, title, headings, and date
C11: Updated O&M costs & Linked input
C12: Awaiting for schedule FC composite interest rate to be completed
A13: 10/27/2022 | B13: JH | C13: 2023 FC (FA-1I) interest rate is the same as FY 2019, no update needed.
A14: 01/09/2023 | B14: KJ | C14: Review

Sheet OUTPUT
A2: =+Information!A1 -> Glide WD - 2023 M&I Water Rates Sch O-10.Z25.xlsm
A3: =+Information!A2 -> 01/09/2023
A4: CENTRAL VALLEY PROJECT
A5: GLIDE WATER DISTRICT
A6: TEHAMA -COLUSA CANAL
A7: CONTRACT NO. 07-07-20-W040-P
A8: 2023 M&I WATER RATES
A9: FOR TIERED PRICING PURPOSES
A10: Category | B10: Component | C10: Cost of Service Rate per Acre-Foot <Sch S-2, A-2A> | D10: Full Cost Rate per Acre-Foot <Sch S-2, A-2A>
A11: Construction Costs per Acre-Foot | B11: Storage | C11: 0 | D11: TBD
A12: Construction Costs per Acre-Foot | B12: Other Cost | C12: 0 | D12: TBD
A13: Construction Costs per Acre-Foot | B13: Conveyance | C13: 0 | D13: TBD
A14: Total | B14: Total Capital | C14: =SUM(C11:C13) -> 0 | D14: =SUM(D11:D13) -> 0
A15: O&M Costs per Acre-Foot | B15: Water Marketing | C15: =[1]OUTPUT!$E$161 -> 15.52 | D15: TBD
A16: O&M Costs per Acre-Foot | B16: Conveyance | C16: =[1]OUTPUT!$I$161 -> 0 | D16: TBD
A17: O&M Costs per Acre-Foot | B17: Storage | C17: =[1]OUTPUT!$G$169 -> 17.23 | D17: TBD
A18: Total | B18: Total O&M | C18: =SUM(C15:C17) -> 32.75 | D18: =SUM(D15:D17) -> 0
A19: Grand Total | B19: - | C19: =+C14+C18 -> 32.75 | D19: =+D14+D18 -> 0

Sheet Linked Input (hidden)
A1: =+OUTPUT!A2 -> Glide WD - 2023 M&I Water Rates Sch O-10.Z25.xlsm
A2: =+OUTPUT!A3 -> 01/09/2023
B4: Special Rates 2023 Sch S-1.Z25.XLSM
I6: Net Unpaid | K6: Unpaid Construction | M6: FY 2023 | O6: Unpaid
I7: Construction | K7: Annualized Costs | M7: Projected | O7: Construction Rate
I8: at 9/30/2021 | K8: 8 Remaining Yrs | M8: Deliveries | O8: Per Acre Foot
B10: Direct Pumping
C11: NO DIRECT PUMPING FOR THIS CONTRACT | K11: =+I11/8 -> 0
B13: Special Rates 2023 Sch S-2.Z25.XLSM
I15: Net Unpaid | K15: Unpaid Construction | O15: =M6 -> FY 2023 | Q15: Unpaid Construction Rate
I16: Construction | K16: Annulized Cost | M16: Annual Interest @ | O16: Projected | Q16: Construction
I17: =I8 -> at 9/30/2021 | K17: =K8 -> 8 Remaining Yrs | M17: =+K32 -> 0.08012 | O17: Deliveries | Q17: only | R17: Interest | S17: Total
C19: Storage | I19: =[2]OUTPUT!$M$19 -> 2158285.3 | K19: =+I19/8 -> 269785.6625 | M19: =+I19*M$17 -> 172921.8182 | O19: =[2]OUTPUT!$S$19 -> 245181.5714 | Q19: =ROUND(+K19/O19,2) -> 1.1 | R19: =ROUND(+M19/O19,2) -> 0.71 | S19: =+Q19+R19 -> 1.81
C21: Conveyance | I21: =[2]OUTPUT!$M$26 -> 1417022.47 | K21: =+I21/8 -> 177127.8087 | M21: =+I21*M$17 -> 113531.8403 | O21: =[2]OUTPUT!$S$26 -> 172696.7143 | Q21: =ROUND(+K21/O21,2) -> 1.03 | R21: =ROUND(+M21/O21,2) -> 0.66 | S21: =+Q21+R21 -> 1.69
C23: Other Costs | I23: =[2]OUTPUT!$M$89 -> 1629023.464 | K23: =+I23/8 -> 203627.933 | M23: =+I23*M$17 -> 130517.3599 | O23: =[2]OUTPUT!$S$89 -> 331768.7143 | Q23: =ROUND(+K23/O23,2) -> 0.61 | R23: =ROUND(+M23/O23,2) -> 0.39 | S23: =+Q23+R23 -> 1
B26: M&I 2023 Sch A-13
C28: M&I COMPOSITE INTEREST RATE FOR CAPITAL | K28: =[3]Manual_Input!K7 -> 0.02375460811
B30: IRR 2023 FC (FA&B-1I) GS Composite Interest Rate All Components.xlsm
C32: M&I COMPOSITE INTEREST RATE FOR CAPITAL | K32: 0.08012
